fUSD/lending_fUSD_20250702
["ID","MTS","AMOUNT","RATE_DAILY","PERIOD"]
[369109080,1751485832662,-150.0,0.00026836,2]
[369109081,1751485832671,-150.0,0.00026836,2]
[369109082,1751485832681,-150.0,0.00026836,2]
[369109083,1751485832691,-150.0,0.00026836,2]
[369109084,1751485832701,-500.0,0.00026836,2]
[369109085,1751485832710,-500.0,0.00026836,2]
[369109086,1751485832720,-150.0,0.00026836,2]
[369109087,1751485832730,-150.0,0.00026836,2]
[369109088,1751485832744,-500.0,0.00026836,2]
[369109089,1751485832754,-150.0,0.00026836,2]
[369109090,1751485832763,-150.0,0.00026836,2]
[369109091,1751485832773,-500.0,0.00026836,2]
[369109092,1751485832783,-150.0,0.00026836,2]
[369109093,1751485832792,-500.0,0.00026836,2]
[369109094,1751485832802,-152.54421228,0.00026873,2]
[369109095,1751485832812,-9571.27850002,0.0002689,2]
[369109096,1751485832821,-2453.14,0.00026906,2]
[369109097,1751485832831,-176.72133978,0.00026912,2]
[369109098,1751485832841,-501.68564025,0.00026973,2]
[369109099,1751485832851,-500.0,0.00026973,2]
[369109100,1751485832860,-521.99300782,0.00026973,2]
[369109101,1751485832869,-500.78040958,0.00026973,2]
[369109102,1751485832878,-159.80198182,0.00026973,2]
[369109103,1751485832887,-500.0,0.00026973,2]
[369109104,1751485832898,-500.0,0.00026973,2]
[369109105,1751485832908,-500.0,0.00026973,2]
[369109106,1751485832918,-500.0,0.00026973,2]
[369109107,1751485832927,-500.0,0.00026973,2]
[369109108,1751485832938,-500.0,0.00026973,2]
[369109109,1751485832947,-500.45076342,0.00026973,2]
[369109110,1751485832957,-500.88288975,0.00026973,2]
[369109111,1751485832967,-500.0,0.00026973,2]
[369109112,1751485832976,-152.25,0.0002698,2]
[369109113,1751485832986,-152.25,0.0002698,2]
[369109114,1751485832995,-200.0,0.00026985,2]
[369109115,1751485833005,-23616.98031101,0.0002699,2]
[369109116,1751485833014,-176483.6183855,0.0002699,2]
[369109117,1751485833027,-3370.460699,0.0002699,2]
[369109118,1751485833054,-129646.03536896,0.0002699,2]
[369109119,1751485833066,-516.6450527,0.0002699,2]
[369109120,1751485833086,-166.0,0.00022099,2]
[369109121,1751485833096,-8918.38468149,0.0002699,2]
[369109127,1751485837803,-400.59006733,0.00021988,2]
[369109128,1751485837828,-3144.86707767,0.00021988,2]
[369109129,1751485837837,-150.0,0.00026831,2]
[369109130,1751485837847,-276.25759255,0.00026989,2]
[369109131,1751485837856,-571.8365414,0.00026989,2]
[369109132,1751485837866,-35483.68360068,0.0002699,2]
[369109133,1751485837878,-8097.36140167,0.0002699,2]
[369109134,1751485837887,-423.18330936,0.0002699,2]
[369109278,1751485839921,-1352.59422969,0.000269,16]
[369109295,1751485840071,-904.745,0.000269,16]
[369109298,1751485840094,-1955.46417457,0.000269,16]
[369109300,1751485840104,-26928.58198608,0.0002699,2]
[369109305,1751485840140,-19633.66,0.0002699,2]
[369109647,1751485844075,-4131.58879363,0.0002699,2]
[369109796,1751485845658,-300.0,0.0002699,2]
[369109817,1751485845858,-1767.08413751,0.0002699,2]
[369109824,1751485845920,-108589.81659208,0.0002699,2]
[369109827,1751485845932,-3214.5204257,0.0002699,2]
[369111453,1751486134807,1368.85920899,0.00027397,120]
[369111459,1751486391382,157.59,0.00013699,2]
[369111467,1751486724131,343.74,0.00025047,120]
[369111469,1751486827475,165.19328043,0.00027397,120]
[369111486,1751487031928,-523.0,0.00022395,2]
[369111487,1751487031938,-181.515989,0.00023395,2]
[369111488,1751487031948,-200.0,0.00024028,2]
[369111489,1751487031957,-791.89,0.00024028,2]
[369111490,1751487031968,-2751.0,0.00024028,2]
[369111491,1751487031977,-200.0,0.00024034,2]
[369111492,1751487031987,-173.36,0.00024046,2]
[369111493,1751487031997,-523.0,0.00024745,5]
[369111494,1751487032008,-730.39239415,0.00024787,2]
[369111495,1751487032020,-627.54760585,0.00024787,2]
[369111496,1751487032030,-1357.94,0.00024793,2]
[369111497,1751487032040,-1357.94,0.000248,2]
[369111498,1751487032050,-1200.0,0.00024805,2]
[369111499,1751487032061,-1357.94,0.00024806,2]
[369111500,1751487032072,-300.0,0.00024812,2]
[369111501,1751487032083,-1357.94,0.00024813,2]
[369111502,1751487032093,-1357.94,0.00024819,2]
[369111503,1751487032103,-300.0,0.00024825,2]
[369111504,1751487032115,-1357.94,0.00024826,2]
[369111505,1751487032124,-1357.94,0.00024832,2]
[369111506,1751487032135,-150.0,0.00024837,2]
[369111507,1751487032144,-1357.94,0.00024839,2]
[369111508,1751487032153,-1357.94,0.00024845,2]
[369111509,1751487032163,-1357.94,0.00024852,2]
[369111510,1751487032174,-1357.94,0.00024858,2]
[369111511,1751487032183,-1357.94,0.00024865,2]
[369111512,1751487032192,-1357.94,0.00024871,2]
[369111513,1751487032202,-1357.94,0.00024878,2]
[369111514,1751487032211,-1357.94,0.00024884,2]
[369111515,1751487032222,-1357.94,0.00024891,2]
[369111516,1751487032231,-1357.94,0.00024897,2]
[369111517,1751487032241,-238.49010656,0.000249,12]
[369111520,1751487032261,-906.93304837,0.000249,12]
[369111525,1751487032307,-628.5266821,0.000249,12]
[369111527,1751487032318,-1352.92672594,0.000249,12]
[369111529,1751487032344,-845.09770921,0.000249,12]
[369111530,1751487032360,-134.31561569,0.000249,12]
[369111531,1751487032370,-1357.94,0.00024904,2]
[369111533,1751487032379,-157.59,0.00024907,2]
[369111535,1751487032388,-1357.94,0.00024911,2]
[369111537,1751487032398,-151.0,0.00025062,2]
[369111539,1751487032407,-151.0,0.00025062,2]
[369111541,1751487032417,-151.0,0.00025062,2]
[369111543,1751487032428,-151.0,0.00025062,2]
[369111545,1751487032437,-151.0,0.00025062,2]
[369111547,1751487032446,-151.0,0.00025062,2]
[369111549,1751487032455,-151.0,0.00025062,2]
[369111550,1751487032465,-151.0,0.00025062,2]
[369111551,1751487032475,-151.0,0.00025062,2]
[369111552,1751487032484,-151.0,0.00025062,2]
[369111553,1751487032493,-151.0,0.00025062,2]
[369111554,1751487032503,-151.0,0.00025062,2]
[369111555,1751487032512,-4106.28988774,0.00025072,12]
[369111556,1751487032522,-181.515989,0.00025076,2]
[369111557,1751487032531,-1200.0,0.00025076,2]
[369111558,1751487032541,-19239.35395648,0.00025077,2]
[369111559,1751487032553,-42381.23951798,0.00025077,2]
[369111560,1751487032563,-23900.0,0.00025105,2]
[369111561,1751487032572,-1000.0,0.00025185,2]
[369111562,1751487032581,-153.19,0.00025203,2]
[369111563,1751487032591,-4106.28988774,0.00025245,12]
[369111564,1751487032600,-250.0,0.00025257,2]
[369111565,1751487032610,-4106.28988774,0.00025417,13]
[369111566,1751487032620,-2710.29,0.00025446,2]
[369111567,1751487032629,-2857.83,0.00025479,2]
[369111568,1751487032638,-1868.11,0.00025479,2]
[369111569,1751487032648,-631.83,0.00025479,2]
[369111570,1751487032657,-19999.99,0.00025479,2]
[369111571,1751487032667,-5000.0,0.00025491,2]
[369111572,1751487032677,-2000.0,0.000255,2]
[369111573,1751487032687,-457.4,0.00025507,2]
[369111574,1751487032696,-6002.42,0.00025507,2]
[369111575,1751487032705,-29999.99,0.00025507,2]
[369111576,1751487032715,-11380.44878961,0.00025583,2]
[369111577,1751487032724,-4106.28988774,0.0002559,13]
[369111578,1751487032733,-5000.0,0.0002572,2]
[369111579,1751487032743,-4106.28988774,0.00025762,13]
[369111580,1751487032752,-11380.44878961,0.0002582,2]
[369111581,1751487032762,-864.15,0.00025835,2]
[369111582,1751487032771,-681.7548988,0.00025899,2]
[369111583,1751487032781,-12015.79918724,0.00025904,2]
[369111584,1751487032791,-1000.0,0.00025927,2]
[369111585,1751487032801,-170.94,0.00025933,2]
[369111586,1751487032811,-4106.28988774,0.00025934,14]
[369111587,1751487032820,-500.0,0.00025966,2]
[369111588,1751487032829,-1179.71,0.00025986,2]
[369111589,1751487032839,-1000.0,0.00026,9]
[369111590,1751487032848,-214.99,0.00026039,2]
[369111591,1751487032857,-799.17,0.00026055,2]
[369111592,1751487032867,-11380.44878961,0.00026058,2]
[369111593,1751487032877,-385.89,0.00026065,2]
[369111594,1751487032887,-799.96,0.00026082,2]
[369111595,1751487032896,-1000.0,0.000261,6]
[369111596,1751487032906,-1000.0,0.000261,5]
[369111597,1751487032918,-1000.0,0.000261,4]
[369111598,1751487032927,-1000.0,0.000261,9]
[369111599,1751487032937,-4106.28988774,0.00026107,14]
[369111600,1751487032947,-28319.7697505,0.00026148,2]
[369111604,1751487037866,-2419.01931907,0.00026148,2]
[369111605,1751487037877,-192.84,0.00026212,2]
[369111606,1751487037887,-681.7548988,0.00026217,2]
[369111607,1751487037897,-8295.59301105,0.00026218,2]
[369111608,1751487037919,-907.22631963,0.00026218,2]
[369111609,1751487037928,-731.97366037,0.00026279,14]
[369111610,1751487038024,-358.20274504,0.00026279,14]
[369111611,1751487038080,-3016.11348233,0.00026279,14]
[369111612,1751487038090,-29210.6288927,0.00026293,2]
[369111613,1751487038103,-11380.44878961,0.00026295,2]
[369111614,1751487038113,-500.0,0.00026296,2]
[369111615,1751487038123,-1000.0,0.000263,8]
[369111616,1751487038132,-1000.0,0.000263,7]
[369111617,1751487038142,-5642.74355154,0.00026303,2]
[369111618,1751487038151,-9202.81933066,0.00026373,2]
[369111619,1751487038161,-935.16064259,0.00026418,2]
[369111620,1751487038190,-268.25522138,0.00026418,2]
[369111832,1751487040031,-266.52056813,0.00026418,2]
[369111835,1751487040043,-660.63874411,0.00026418,2]
[369111849,1751487040183,-1026.05778401,0.00026418,2]
[369111851,1751487040196,-1818.40799999,0.00026418,2]
[369111853,1751487040208,-545.9254169,0.00026418,2]
[369112486,1751487046402,-4266.37231303,0.00026418,2]
[369112488,1751487046411,-173.96985913,0.00026432,2]
[369112490,1751487046420,-4106.28988774,0.00026452,15]
[369112492,1751487046429,-455.96,0.00026493,2]
[369112494,1751487046439,-469.0,0.000265,15]
[369112496,1751487046448,-1000.0,0.000265,12]
[369112498,1751487046458,-465.89114269,0.000265,11]
[369112501,1751487046479,-534.10885731,0.000265,11]
[369112503,1751487046488,-1000.0,0.000265,10]
[369112505,1751487046497,-661.69114269,0.00026508,2]
[369112508,1751487046509,-20.06375611,0.00026508,2]
[369112509,1751487046518,-835.76641509,0.00026527,2]
[369112514,1751487046557,-5196.73915776,0.00026527,2]
[369114023,1751487071411,310.09151191,0.00027397,120]
[369114024,1751487073024,324.23447642,0.00027397,120]
[369114044,1751487123560,300.0,0.00025994,120]
[369114045,1751487205055,611.29,0.00027397,120]
[369114046,1751487267310,600.0,0.00027397,120]
[369114047,1751487327613,166.0,0.0002699,120]
[369114048,1751487329072,166.0,0.0002698,120]
[369114049,1751487329167,166.0,0.0002697,120]
[369114051,1751487425245,157.59,0.00013699,2]
[369114055,1751487538670,3437.81,0.00020103,2]
[369114056,1751487570171,2591.38,0.00027397,120]
[369114058,1751487683939,1152.19302413,0.00027397,120]
[369114060,1751487828747,263.0,0.0002739,120]
[369114061,1751487908091,435544.37593969,0.00014,2]
[369114091,1751488080288,139662.19056036,0.0002,4]
[369114092,1751488112171,585.82,0.00027397,120]
[369114103,1751488177817,600.0,0.00027397,120]
[369114123,1751488232106,-182.58,0.00020654,2]
[369114125,1751488232116,-490.0,0.00022619,2]
[369114127,1751488232126,-300.0,0.00022719,2]
[369114129,1751488232135,-300.0,0.000232,2]
[369114131,1751488232144,-647.94337964,0.00023322,2]
[369114132,1751488232154,-564.67775248,0.00023323,2]
[369114133,1751488232163,-168.533993,0.00023876,2]
[369114134,1751488232173,-32.75476929,0.00023996,2]
[369114135,1751488232297,-143.50789179,0.00023996,2]
[369114136,1751488232306,-5000.00774398,0.00024,5]
[369114137,1751488232316,-1200.0,0.00024899,2]
[369114138,1751488232325,-2737.52659202,0.000249,12]
[369114139,1751488232334,-81.09570854,0.00024932,7]
[369114140,1751488232365,-306.90429146,0.00024932,7]
[369114141,1751488232375,-176.26266106,0.00024959,2]
[369114142,1751488232384,-26.55495419,0.00025,7]
[369114147,1751488232419,-361.44504581,0.00025,7]
[369114148,1751488232428,-214.24,0.00025015,2]
[369114149,1751488232437,-200.0,0.00025053,2]
[369114150,1751488232447,-631.25892489,0.00025072,12]
[369114151,1751488232459,-2106.26766693,0.00025072,12]
[369114152,1751488232468,-220.0,0.00025172,2]
[369114153,1751488232477,-23900.0,0.00025173,2]
[369114154,1751488232486,-198.0,0.0002518,7]
[369114155,1751488232495,-388.0,0.00025205,7]
[369114156,1751488232509,-2737.52659182,0.00025245,12]
[369114157,1751488232519,-223.6,0.00025254,2]
[369114158,1751488232528,-649.35,0.00025265,2]
[369114159,1751488232540,-300.0,0.00025267,2]
[369114160,1751488232550,-300.0,0.00025268,2]
[369114161,1751488232560,-250.0,0.00025268,2]
[369114162,1751488232569,-2734.21,0.00025268,2]
[369114163,1751488232578,-186.66,0.00025285,2]
[369114164,1751488232588,-1000.0,0.00025285,2]
[369114165,1751488232597,-2737.52659182,0.00025417,13]
[369114166,1751488232606,-388.0,0.00025479,7]
[369114168,1751488232616,-2737.52659182,0.0002559,13]
[369114170,1751488232625,-388.0,0.00025753,7]
[369114172,1751488232634,-2737.52659182,0.00025762,13]
[369114174,1751488232644,-2000.0,0.000258,2]
[369114176,1751488232654,-2087.31667017,0.00025806,2]
[369114178,1751488232665,-2192.08894645,0.00025806,2]
[369114222,1751488238682,-413.4314058,0.00025806,2]
[369114234,1751488238786,-307.16297758,0.00025806,2]
[369114236,1751488238796,-191.28,0.00025845,2]
[369114238,1751488238806,-1474.38,0.00025846,2]
[369114240,1751488238815,-500.0,0.00025874,2]
[369114242,1751488238825,-200.0,0.00025875,7]
[369114244,1751488238834,-388.0,0.0002589,7]
[369114246,1751488238844,-176.26266106,0.00025922,2]
[369114248,1751488238854,-2737.52659182,0.00025934,14]
[369114250,1751488238864,-319.0,0.00025946,7]
[369114252,1751488238873,-4397.00951142,0.00026,2]
[369114254,1751488238883,-310.27336759,0.00026,2]
[369114256,1751488238892,-295.56,0.00026022,2]
[369114258,1751488238901,-198.0,0.0002603,2]
[369114260,1751488238911,-198.0,0.00026033,2]
[369114262,1751488238921,-2737.52659182,0.00026107,14]
[369114264,1751488238933,-681.75489881,0.00026192,2]
[369114266,1751488238943,-168.0,0.00026232,2]
[369114268,1751488238952,-151.0,0.00026254,2]
[369114270,1751488238961,-151.0,0.00026254,2]
[369114272,1751488238971,-151.0,0.00026254,2]
[369114274,1751488238980,-151.0,0.00026254,2]
[369114276,1751488238989,-151.0,0.00026254,2]
[369114278,1751488238998,-151.0,0.00026254,2]
[369114280,1751488239007,-151.0,0.00026254,2]
[369114282,1751488239016,-151.0,0.00026254,2]
[369114284,1751488239025,-151.0,0.00026254,2]
[369114286,1751488239035,-151.0,0.00026254,2]
[369114288,1751488239044,-151.0,0.00026254,2]
[369114290,1751488239053,-151.0,0.00026254,2]
[369114292,1751488239062,-3844.32964,0.0002626,2]
[369114294,1751488239072,-1003.23375352,0.00026269,2]
[369114296,1751488239081,-82635.08915157,0.0002627,2]
[369114298,1751488239090,-2737.52659182,0.00026279,14]
[369114300,1751488239099,-168.0,0.00026289,2]
[369114302,1751488239108,-198.0,0.00026315,2]
[369114303,1751488239118,-3844.32965,0.0002632,2]
[369114305,1751488239127,-319.0,0.00026357,2]
[369114308,1751488239138,-3844.32965,0.0002638,2]
[369114309,1751488239147,-1283.99,0.00026411,2]
[369114311,1751488239156,-2737.52659182,0.00026452,15]
[369114313,1751488239165,-168.0,0.0002646,2]
[369114315,1751488239177,-350.0,0.000265,2]
[369114317,1751488239186,-3844.32965,0.00026527,2]
[369114319,1751488239196,-3844.32965,0.00026527,2]
[369114321,1751488239205,-3844.32965,0.00026527,2]
[369114323,1751488239215,-1597.55,0.00026548,2]
[369114325,1751488239224,-198.0,0.00026598,2]
[369114327,1751488239232,-2737.52659182,0.00026624,15]
[369114329,1751488239241,-168.0,0.00026658,2]
[369114331,1751488239250,-754.4655,0.00026685,10]
[369114333,1751488239259,-302.0,0.00026685,2]
[369114335,1751488239268,-774.0,0.00026692,2]
[369114337,1751488239277,-480.07699061,0.00026759,3]
[369114339,1751488239286,-6959187.07275637,0.00026786,4]
[369114342,1751488239305,-6964.49483139,0.00026786,4]
[369114345,1751488239328,-833.67998037,0.00026786,4]
[369114350,1751488239393,-490.0,0.00026786,4]
[369114460,1751488240587,-1457.20499986,0.00026786,4]
[369114467,1751488240648,-547.75,0.00026786,4]
[369114825,1751488244333,-501.30092355,0.00026786,4]
[369114844,1751488244520,-441.49668996,0.00026786,4]
[369115000,1751488246135,-886.57190863,0.00026786,4]
[369116683,1751488374881,-523.0,0.00023096,2]
[369116686,1751488381330,-234.37328133,0.00023096,2]
[369116687,1751488381354,-65.62671867,0.00024414,2]
[369116692,1751488389870,-234.37328133,0.00024414,2]
[369116694,1751488394003,-300.0,0.00025405,2]
[369116695,1751488394039,-250.0,0.00025405,2]
[369116696,1751488394064,-523.0,0.00025732,6]
[369116697,1751488394088,-150.0,0.00025816,2]
[369116698,1751488394111,-200.0,0.0002586,7]
[369116726,1751488596733,162.24,0.00013699,2]
[369116727,1751488618128,441.71,0.00025776,120]
[369116730,1751488715948,9165.83,0.00027397,120]
[369116739,1751488905366,795.59134616,0.00027397,120]
[369116745,1751489002103,561.41,0.00027397,120]
[369116759,1751489113797,237.76,0.00020201,2]
[369116760,1751489116677,242.5780093,0.00027397,120]
[369116762,1751489210035,4500.0,0.000202,2]
[369116785,1751489246899,1846.0,0.00026955,120]
[369116786,1751489247339,1846.0,0.00026945,120]
[369116787,1751489248660,1846.0,0.00026935,120]
[369116788,1751489249609,150.5,0.00026955,120]
[369116789,1751489250050,150.5,0.00026945,120]
[369116790,1751489250484,150.5,0.00026935,120]
[369116791,1751489294174,400.0,0.00026,120]
[369116792,1751489312563,487.0,0.00027,120]
[369116794,1751489367589,1292.0,0.00026965,120]
[369116795,1751489367797,1292.0,0.00026955,120]
[369116796,1751489368179,1292.0,0.00026945,120]
[369116818,1751489432465,-600.0,0.00020199,2]
[369116819,1751489432475,-1200.0,0.00020199,2]
[369116820,1751489432484,-300.0,0.00020199,2]
[369116821,1751489432494,-5017.0,0.000202,2]
[369116822,1751489432503,-9762.24,0.00020201,2]
[369116823,1751489432513,-420.0,0.0002199,2]
[369116824,1751489432523,-1680.0,0.00022095,2]
[369116825,1751489432533,-150.0,0.00023432,2]
[369116826,1751489432542,-150.0,0.00023484,2]
[369116827,1751489432552,-150.0,0.00023666,2]
[369116828,1751489432562,-600.0,0.00023897,2]
[369116829,1751489432572,-150.0,0.00023899,2]
[369116830,1751489432583,-1733.76684166,0.000239,10]
[369116831,1751489432592,-587.0,0.0002394,2]
[369116832,1751489432601,-1733.76684148,0.00024107,10]
[369116833,1751489432610,-889.0,0.0002417,2]
[369116834,1751489432620,-150.0,0.00024267,2]
[369116835,1751489432629,-1733.76684148,0.00024314,10]
[369116836,1751489432639,-150.0,0.00024337,2]
[369116837,1751489432648,-1733.76684148,0.00024521,11]
[369116838,1751489432657,-150.0,0.00024634,2]
[369116839,1751489432667,-1733.76684148,0.00024728,11]
[369116840,1751489432676,-150.0,0.00024798,2]
[369116842,1751489432686,-162.24,0.00024907,2]
[369116844,1751489432695,-485.0,0.00024932,7]
[369116846,1751489432704,-1733.76684148,0.00024934,12]
[369116848,1751489432713,-150.0,0.00024971,2]
[369116850,1751489432722,-485.0,0.00025,7]
[369116852,1751489432732,-1000.0,0.0002511,2]
[369116854,1751489432741,-1733.76684148,0.00025141,12]
[369116856,1751489432750,-1651.15,0.00025187,2]
[369116857,1751489432760,-320.16,0.00025254,2]
[369116859,1751489432769,-1000.0,0.0002526,2]
[369116861,1751489432778,-150.0,0.0002526,2]
[369116862,1751489432789,-5303.26770317,0.0002526,2]
[369116863,1751489432798,-2543.32366886,0.00025261,2]
[369116864,1751489432833,-604.0,0.00025261,2]
[369116865,1751489432846,-295.80682,0.00025261,2]
[369116866,1751489432919,-20456.86951114,0.00025261,2]
[369116867,1751489432929,-200.0,0.00025301,2]
[369116868,1751489432938,-1733.76684148,0.00025348,13]
[369116869,1751489432948,-500.0,0.00025357,2]
[369116870,1751489432958,-523.0,0.00025368,2]
[369116871,1751489432967,-1000.0,0.0002537,2]
[369116872,1751489432976,-1000.0,0.00025387,2]
[369116873,1751489432985,-150.0,0.00025429,2]
[369116874,1751489432994,-153.19,0.00025502,2]
[369116875,1751489433003,-155.55,0.00025533,2]
[369116876,1751489433013,-1733.76684148,0.00025555,13]
[369116877,1751489433022,-150.0,0.00025696,2]
[369116878,1751489433303,-6912.15388502,0.00025709,2]
[369116879,1751489433345,-150.0,0.00025737,2]
[369116880,1751489433356,-150.0,0.00025742,2]
[369116881,1751489433365,-1733.76684148,0.00025762,13]
[369116882,1751489433375,-250.0,0.00025771,2]
[369116883,1751489433385,-1266.13,0.000258,2]
[369116884,1751489433394,-5000.0,0.00025802,2]
[369116885,1751489433404,-1141.18,0.00025808,2]
[369116886,1751489433413,-4731.88,0.00025809,2]
[369116887,1751489433423,-150.99,0.00025809,2]
[369116888,1751489433433,-9999.99,0.00025809,2]
[369116889,1751489433443,-38884.99668621,0.00025809,10]
[369116890,1751489433507,-13025.0,0.00025809,10]
[369116891,1751489433519,-484.37328133,0.00025809,10]
[369116892,1751489433542,-323.13,0.00025809,10]
[369116893,1751489433552,-500.0,0.00025809,10]
[369116900,1751489438272,-500.0,0.00025809,10]
[369116901,1751489438284,-2775.2564,0.00025809,10]
[369116902,1751489438329,-3425.91230633,0.00025809,10]
[369116903,1751489438340,-907.1942326,0.00025809,10]
[369116904,1751489438352,-282.424534,0.00025809,10]
[369116905,1751489438492,-3915.46255953,0.00025809,10]
[369116906,1751489438502,-9999.99,0.00025809,2]
[369116907,1751489438512,-203.77,0.00025809,5]
[369116908,1751489438523,-3572.28,0.00025809,2]
[369116909,1751489438533,-9999.99,0.00025809,2]
[369116910,1751489438542,-836.11932155,0.00025809,10]
[369116912,1751489438551,-2927.0,0.0002581,2]
[369116914,1751489438561,-8671.09,0.0002581,2]
[369116915,1751489438570,-13165.11892503,0.0002581,2]
[369117090,1751489440374,-1970.10107497,0.0002581,2]
[369117091,1751489440384,-930.0,0.0002581,2]
[369117094,1751489440394,-1696.72,0.0002581,2]
[369117096,1751489440404,-150.99,0.0002581,2]
[369117098,1751489440415,-246.61308356,0.0002589,7]
[369117101,1751489440439,-238.38691644,0.0002589,7]
[369117103,1751489440449,-6912.15388494,0.00025897,2]
[369117105,1751489440458,-1733.76684148,0.00025969,14]
[369117107,1751489440468,-823.0,0.00026062,2]
[369117109,1751489440478,-150.0,0.00026069,2]
[369117111,1751489440487,-6912.15388494,0.00026085,2]
[369117113,1751489440498,-1000.0,0.00026088,2]
[369117115,1751489440508,-150.0,0.0002613,2]
[369117117,1751489440517,-2927.0,0.00026165,7]
[369117119,1751489440527,-1733.76684148,0.00026176,14]
[369117121,1751489440537,-150.0,0.00026208,2]
[369117123,1751489440547,-6912.15388494,0.00026273,2]
[369117125,1751489440556,-2927.0,0.00026286,2]
[369117127,1751489440569,-506.3549647,0.0002636,2]
[369117129,1751489440579,-1733.76684148,0.00026383,15]
[369117131,1751489440588,-150.0,0.00026385,2]
[369117133,1751489440598,-168.27,0.00026412,2]
[369117135,1751489440607,-150.0,0.00026422,2]
[369117137,1751489440617,-470.822041,0.0002645,8]
[369117139,1751489440626,-6912.15388494,0.00026461,2]
[369117141,1751489440635,-150.0,0.00026464,2]
[369117143,1751489440644,-152.54421228,0.00026571,2]
[369117145,1751489440653,-150.0,0.00026584,2]
[369117147,1751489440663,-6779.14888139,0.00026589,2]
[369117149,1751489440672,-1733.76684148,0.0002659,15]
[369117151,1751489440681,-6912.15388494,0.00026648,2]
[369117153,1751489440691,-6779.14888131,0.00026668,2]
[369117155,1751489440700,-167.27690369,0.00026671,2]
[369117157,1751489440710,-65734.20533377,0.00026671,2]
[369117160,1751489440721,-21777.21063263,0.00026671,2]
[369117162,1751489440730,-500.0,0.00026671,2]
[369117164,1751489440740,-36230.7195,0.00026681,2]
[369117165,1751489440749,-100501.28520324,0.00026681,2]
[369117168,1751489440765,-2082.79702983,0.00026681,2]
[369117170,1751489440776,-1713.45000002,0.00026681,2]
[369117174,1751489440802,-28800.0,0.00026681,2]
[369117461,1751489443713,-950.8818373,0.00026681,2]
[369117706,1751489446541,-13110.48605994,0.00026681,2]
[369117711,1751489446603,-14332.85496007,0.00026681,2]
[369119341,1751489489209,905.0,0.0002699,120]
[369119342,1751489489663,905.0,0.0002698,120]
[369119343,1751489490080,905.0,0.0002697,120]
[369119389,1751489584468,176.82,0.00025745,120]
[369119400,1751489606831,633.0,0.0002699,120]
[369119401,1751489607300,633.0,0.0002698,120]
[369119402,1751489607699,633.0,0.0002697,120]
[369119426,1751489641009,151.76,0.00013699,2]
[369119472,1751489727507,443.0,0.0002698,120]
[369119473,1751489727708,443.0,0.0002697,120]
[369119474,1751489728120,443.0,0.0002696,120]
[369119508,1751489846913,310.0,0.0002698,120]
[369119509,1751489847317,310.0,0.0002697,120]
[369119511,1751489847748,310.0,0.0002696,120]
[369119512,1751489871798,538.02,0.00027397,120]
[369119517,1751489967397,217.0,0.00026955,120]
[369119518,1751489967831,217.0,0.00026945,120]
[369119519,1751489969710,217.0,0.00026935,120]
[369119524,1751490087103,152.0,0.00026955,120]
[369119525,1751490087531,152.0,0.00026945,120]
[369119526,1751490087965,152.0,0.00026935,120]
[369119533,1751490207298,150.5,0.00026979,120]
[369119534,1751490207722,150.5,0.00026969,120]
[369119535,1751490208159,150.5,0.00026959,120]
[369119536,1751490227797,320.0,0.0002739,120]
[369119538,1751490231667,870.05631478,0.0002739,120]
[369119540,1751490278124,187.0,0.0002739,120]
[369119542,1751490344239,376.0,0.0002739,120]
[369119543,1751490399027,197.0,0.0002739,120]